fUST/lending_fUST_20250314
["ID","MTS","AMOUNT","RATE_DAILY","PERIOD"]
[356141337,1741952965395,-500.0,8.737e-05,2]
[356141338,1741952965415,-509.00962494,8.737e-05,2]
[356141339,1741952965437,-436.16495555,8.737e-05,2]
[356141340,1741952965458,-500.0,8.737e-05,2]
[356141341,1741952965478,-500.0,8.737e-05,2]
[356141342,1741952965500,-500.0,8.737e-05,2]
[356141343,1741952965522,-288.91889957,8.737e-05,2]
[356141344,1741952965544,-500.0,8.737e-05,2]
[356141345,1741952965566,-5171.36,8.737e-05,2]
[356141346,1741952965587,-502.54090459,8.737e-05,2]
[356141347,1741952965608,-494.2858879,8.737e-05,2]
[356141348,1741952965628,-505.92570101,8.737e-05,2]
[356141349,1741952965650,-511.76912508,8.737e-05,2]
[356141350,1741952965672,-500.0,8.737e-05,2]
[356141351,1741952965695,-500.0,8.737e-05,2]
[356141352,1741952965716,-500.0,8.737e-05,2]
[356141353,1741952965736,-500.0,8.737e-05,2]
[356141354,1741952965756,-5287.61,8.737e-05,2]
[356141355,1741952965777,-500.0,8.737e-05,2]
[356141356,1741952965797,-500.0,8.737e-05,2]
[356141357,1741952965819,-1115.61,8.737e-05,2]
[356141358,1741952965839,-516.46286688,8.737e-05,2]
[356141359,1741952965860,-500.0,8.737e-05,2]
[356141360,1741952965881,-500.0,8.737e-05,2]
[356141361,1741952965902,-514.01087371,8.737e-05,2]
[356141362,1741952965925,-500.0,8.737e-05,2]
[356141363,1741952965948,-500.0,8.737e-05,2]
[356141364,1741952965969,-500.0,8.737e-05,2]
[356141365,1741952965992,-1075.61,8.737e-05,2]
[356141366,1741952966013,-500.0,8.737e-05,2]
[356141367,1741952966036,-194.73835525,8.737e-05,2]
[356141368,1741952966062,-500.0,8.738e-05,2]
[356141369,1741952966082,-500.0,8.738e-05,2]
[356141370,1741952966104,-500.0,8.738e-05,2]
[356141371,1741952966126,-500.0,8.738e-05,2]
[356141372,1741952966147,-500.0,8.738e-05,2]
[356141373,1741952966169,-500.0,8.738e-05,2]
[356141374,1741952966189,-500.0,8.738e-05,2]
[356141375,1741952966210,-500.0,8.738e-05,2]
[356141376,1741952966230,-500.98126323,8.738e-05,2]
[356141377,1741952966250,-500.0,8.738e-05,2]
[356141378,1741952966271,-500.0,8.738e-05,2]
[356141379,1741952966292,-500.0,8.738e-05,2]
[356141380,1741952966313,-500.0,8.738e-05,2]
[356141381,1741952966334,-500.0,8.738e-05,2]
[356141384,1741952966355,-500.0,8.738e-05,2]
[356141385,1741952966377,-610.83,8.738e-05,2]
[356141387,1741952966398,-500.0,8.738e-05,2]
[356141388,1741952966419,-500.0,8.738e-05,2]
[356141389,1741952966440,-500.0,8.738e-05,2]
[356141390,1741952966460,-500.0,8.738e-05,2]
[356141392,1741952966481,-500.0,8.738e-05,2]
[356141394,1741952966502,-500.0,8.738e-05,2]
[356141395,1741952966522,-502.65890332,8.738e-05,2]
[356141396,1741952966543,-500.0,8.738e-05,2]
[356141397,1741952966564,-500.0,8.738e-05,2]
[356141398,1741952966585,-952.98,8.738e-05,2]
[356141399,1741952966836,-614.72,8.738e-05,2]
[356141400,1741952966858,-3311.61,8.738e-05,2]
[356141401,1741952966879,-2683.8,8.738e-05,2]
[356141402,1741952966900,-500.0,8.738e-05,2]
[356141403,1741952966921,-500.0,8.738e-05,2]
[356141404,1741952966942,-1867.56,8.738e-05,2]
[356141405,1741952966963,-673.61,8.738e-05,2]
[356141406,1741952966983,-1041.05,8.738e-05,2]
[356141407,1741952967005,-728.73,8.738e-05,2]
[356141408,1741952967026,-500.0,8.738e-05,2]
[356141409,1741952967050,-928.0,8.738e-05,2]
[356141410,1741952967073,-500.0,8.738e-05,2]
[356141411,1741952967094,-297.9964258,8.738e-05,2]
[356141412,1741952967114,-364.95628813,8.738e-05,2]
[356141413,1741952967136,-500.0,8.738e-05,2]
[356141414,1741952967157,-3681.23,8.738e-05,2]
[356141415,1741952967179,-1266.06,8.738e-05,2]
[356141417,1741952967200,-500.0,8.738e-05,2]
[356141418,1741952967222,-4092.8,8.738e-05,2]
[356141419,1741952967241,-500.0,8.738e-05,2]
[356141420,1741952967258,-500.0,8.738e-05,2]
[356141421,1741952967274,-500.0,8.738e-05,2]
[356141422,1741952967292,-1454.37,8.738e-05,2]
[356141423,1741952967313,-500.0,8.738e-05,2]
[356141424,1741952967334,-1345.26,8.738e-05,2]
[356141425,1741952967354,-671.92,8.738e-05,2]
[356141426,1741952967375,-640.1,8.738e-05,2]
[356141427,1741952967396,-667.17,8.738e-05,2]
[356141428,1741952967417,-500.0,8.738e-05,2]
[356141429,1741952967439,-882.64,8.738e-05,2]
[356141430,1741952967459,-500.0,8.738e-05,2]
[356141431,1741952967480,-23297.10042901,8.739e-05,2]
[356141432,1741952971165,-500.0,8.738e-05,2]
[356141433,1741952971186,-7943.01010491,8.739e-05,2]
[356141434,1741952974329,-500.0,8.737e-05,2]
[356141435,1741952974351,-500.0,8.737e-05,2]
[356141436,1741952974372,-1194.82,8.738e-05,2]
[356141437,1741952974394,-127823.25986227,8.739e-05,2]
[356141442,1741952995698,-183.1431957,8.737e-05,2]
[356141444,1741953000430,-232.10257516,8.737e-05,2]
[356141445,1741953006496,-84.75422914,8.737e-05,2]
[356141446,1741953006521,-104.47553606,8.737e-05,2]
[356141447,1741953011513,600.0,0.00011,3]
[356141498,1741953032204,-500.0,8.736e-05,2]
[356141500,1741953032214,-413.60819949,8.737e-05,2]
[356141502,1741953032224,-500.0,8.737e-05,2]
[356141503,1741953032233,-505.07963043,8.737e-05,2]
[356141504,1741953032243,-300.0,8.737e-05,2]
[356141505,1741953032254,-500.0,8.737e-05,2]
[356141506,1741953032263,-500.0,8.737e-05,2]
[356141507,1741953032272,-500.0,8.737e-05,2]
[356141508,1741953032283,-507.29958975,8.737e-05,2]
[356141509,1741953032292,-506.75715879,8.737e-05,2]
[356141510,1741953032302,-500.0,8.737e-05,2]
[356141511,1741953032311,-506.20418174,8.737e-05,2]
[356141512,1741953032321,-913.27,8.738e-05,2]
[356141513,1741953032330,-500.0,8.738e-05,2]
[356141514,1741953032340,-500.0,8.738e-05,2]
[356141515,1741953032349,-688.38,8.738e-05,2]
[356141516,1741953032359,-500.0,8.738e-05,2]
[356141517,1741953032368,-500.0,8.738e-05,2]
[356141518,1741953032378,-500.0,8.738e-05,2]
[356141519,1741953032387,-500.0,8.738e-05,2]
[356141520,1741953032397,-843.82,8.738e-05,2]
[356141521,1741953032406,-3173.63,8.738e-05,2]
[356141522,1741953032415,-500.0,8.738e-05,2]
[356141523,1741953032424,-805.38,8.738e-05,2]
[356141524,1741953032434,-1789.75,8.738e-05,2]
[356141525,1741953032443,-34400.31467175,8.739e-05,2]
[356141582,1741953038756,-2571.97,8.737e-05,2]
[356141583,1741953038765,-500.0,8.738e-05,2]
[356141584,1741953038774,-1852.62727481,8.739e-05,2]
[356141589,1741953040157,-500.0,8.738e-05,2]
[356141590,1741953040168,-272.79413623,8.738e-05,2]
[356141592,1741953040179,-328.38586377,8.738e-05,2]
[356141593,1741953040189,-164.89669776,8.739e-05,2]
[356141606,1741953043081,-500.0,8.737e-05,2]
[356141607,1741953043091,-235.81502961,8.739e-05,2]
[356141624,1741953046179,-500.0,8.736e-05,2]
[356141625,1741953046188,-500.0,8.736e-05,2]
[356141626,1741953046198,-509.71409623,8.737e-05,2]
[356141627,1741953046207,-500.0,8.737e-05,2]
[356141628,1741953046217,-26282.97592988,8.739e-05,2]
[356141629,1741953046227,-500.0,8.813e-05,2]
[356141630,1741953046236,-500.0,8.813e-05,2]
[356141631,1741953046246,-500.0,8.813e-05,2]
[356141632,1741953046256,-500.0,8.813e-05,2]
[356141633,1741953046266,-160.47417492,8.813e-05,2]
[356141634,1741953046276,-500.0,8.813e-05,2]
[356141635,1741953046285,-500.0,8.813e-05,2]
[356141636,1741953046295,-500.0,8.813e-05,2]
[356141637,1741953046305,-500.0,8.813e-05,2]
[356141638,1741953046314,-500.0,8.813e-05,2]
[356141639,1741953046323,-500.0,8.813e-05,2]
[356141640,1741953046333,-262.12352162,8.813e-05,2]
[356141641,1741953046342,-262.12352158,8.819e-05,2]
[356141642,1741953046352,-262.12352158,8.826e-05,2]
[356141643,1741953046361,-262.12352158,8.832e-05,2]
[356141644,1741953046370,-278.66883396,8.837e-05,2]
[356141645,1741953046379,-815.62,8.837e-05,2]
[356141646,1741953046389,-857.64,8.837e-05,2]
[356141647,1741953046398,-2059.33,8.837e-05,2]
[356141648,1741953046408,-500.0,8.837e-05,2]
[356141649,1741953046418,-3033.26,8.837e-05,2]
[356141650,1741953046427,-667.48,8.837e-05,2]
[356141651,1741953046436,-500.0,8.837e-05,2]
[356141652,1741953046446,-833.83,8.837e-05,2]
[356141653,1741953046455,-3998.75,8.837e-05,2]
[356141654,1741953046464,-107021.92648437,8.837e-05,2]
[356141655,1741953046679,-147338.44351563,8.837e-05,2]
[356141656,1741953046694,-2151.52,8.837e-05,2]
[356141657,1741953046708,-933.27,8.837e-05,2]
[356141658,1741953046718,-7661.25,8.837e-05,2]
[356141659,1741953046727,-6512.74,8.837e-05,2]
[356141660,1741953046737,-500.0,8.837e-05,2]
[356141661,1741953046747,-4553.54,8.837e-05,2]
[356141662,1741953046756,-1608.48,8.837e-05,2]
[356141663,1741953046766,-982.96,8.837e-05,2]
[356141664,1741953046775,-500.0,8.838e-05,2]
[356141665,1741953046786,-500.0,8.838e-05,2]
[356141666,1741953046795,-508.30388123,8.838e-05,2]
[356141667,1741953046804,-500.0,8.838e-05,2]
[356141668,1741953046814,-500.0,8.838e-05,2]
[356141669,1741953046823,-500.0,8.838e-05,2]
[356141670,1741953046834,-500.0,8.838e-05,2]
[356141671,1741953046843,-500.0,8.838e-05,2]
[356141672,1741953046853,-517.85025021,8.838e-05,2]
[356141673,1741953046862,-500.0,8.838e-05,2]
[356141674,1741953046872,-500.0,8.838e-05,2]
[356141675,1741953046882,-514.91453316,8.838e-05,2]
[356141676,1741953046891,-500.0,8.838e-05,2]
[356141677,1741953046901,-505.18581336,8.838e-05,2]
[356141678,1741953046911,-515.46938019,8.838e-05,2]
[356141679,1741953046921,-533.80095609,8.838e-05,2]
[356141680,1741953046930,-500.0,8.838e-05,2]
[356141681,1741953046940,-500.0,8.838e-05,2]
[356141682,1741953046950,-500.0,8.838e-05,2]
[356141683,1741953046959,-500.0,8.838e-05,2]
[356141684,1741953046969,-500.0,8.838e-05,2]
[356141685,1741953046978,-292.60670558,8.838e-05,2]
[356141686,1741953046987,-500.0,8.838e-05,2]
[356141687,1741953046997,-504.57053881,8.838e-05,2]
[356141688,1741953047007,-500.0,8.838e-05,2]
[356141689,1741953047017,-589.93,8.838e-05,2]
[356141690,1741953047026,-507.60289689,8.838e-05,2]
[356141691,1741953047036,-500.0,8.838e-05,2]
[356141692,1741953047046,-506.45146868,8.838e-05,2]
[356141693,1741953047055,-500.0,8.838e-05,2]
[356141694,1741953047069,-500.0,8.838e-05,2]
[356141695,1741953047078,-135.26096975,8.838e-05,2]
[356141696,1741953047090,-364.73903025,8.838e-05,2]
[356141697,1741953047100,-708.37,8.838e-05,2]
[356141698,1741953047111,-500.0,8.838e-05,2]
[356141699,1741953047121,-584.45,8.838e-05,2]
[356141700,1741953047131,-500.0,8.838e-05,2]
[356141701,1741953047143,-500.0,8.838e-05,2]
[356141702,1741953047155,-500.0,8.838e-05,2]
[356141703,1741953047165,-500.0,8.838e-05,2]
[356141704,1741953047174,-500.0,8.838e-05,2]
[356141705,1741953047184,-500.0,8.838e-05,2]
[356141706,1741953047194,-500.0,8.838e-05,2]
[356141707,1741953047204,-500.0,8.838e-05,2]
[356141708,1741953047213,-256.44575484,8.838e-05,2]
[356141709,1741953160265,-181.5599978,8.736e-05,2]
[356141710,1741953311069,600.0,0.00011,3]
[356141712,1741953409979,410.67111593,7.736e-05,2]
[356141713,1741953410012,20000.0,7.736e-05,2]
[356141714,1741953410875,-150.0,7.736e-05,2]
[356141715,1741953422834,-157.3912012,7.736e-05,2]
[356141721,1741953613919,38960.25060155,8.735e-05,5]
[356141722,1741953614691,600.0,0.00011,3]
[356141723,1741953642186,-269.11716197,7.735e-05,2]
[356141724,1741953642502,8039.74939845,8.734e-05,5]
[356141725,1741953642528,50000.0,8.734e-05,5]
[356141726,1741953642554,41960.25060155,8.734e-05,5]
[356141727,1741953659025,-34.42712315,7.735e-05,2]
[356141728,1741953659051,-200.41602502,7.735e-05,2]
[356141729,1741953664351,-300.0,7.734e-05,2]
[356141731,1741953724971,-150.0,7.734e-05,2]
[356141732,1741953755008,-248.8156253,7.734e-05,2]
[356141733,1741953762390,-150.0,7.734e-05,2]
[356141734,1741953783265,-165.03549918,7.733e-05,2]
[356141735,1741953843279,-207.15,7.733e-05,2]
[356141736,1741953880949,-246.27627781,7.733e-05,2]
[356141737,1741953904691,-209.79654598,7.732e-05,2]
[356141738,1741953912608,600.0,0.0001,3]
[356141740,1741953954731,-90.20345402,7.732e-05,2]
[356141741,1741953954755,-176.22338134,7.733e-05,2]
[356141751,1741954033130,-500.0,7.732e-05,2]
[356141752,1741954033152,-418.00570075,7.732e-05,2]
[356141753,1741954033174,-500.0,7.732e-05,2]
[356141754,1741954033196,-500.0,7.732e-05,2]
[356141755,1741954033218,-26.22293879,7.732e-05,2]
[356141756,1741954042087,-473.77706121,7.732e-05,2]
[356141757,1741954042110,-500.0,7.732e-05,2]
[356141758,1741954042132,-500.0,7.732e-05,2]
[356141759,1741954042155,-500.0,7.732e-05,2]
[356141760,1741954042176,-14529.62745008,7.736e-05,2]
[356141761,1741954042198,-4181.93768287,7.736e-05,2]
[356141762,1741954042221,-500.0,8.219e-05,2]
[356141763,1741954042242,-500.0,8.493e-05,2]
[356141764,1741954042263,-500.0,8.711e-05,2]
[356141765,1741954042284,-182.61052386,8.711e-05,2]
[356141766,1741954042306,-6527.87,8.712e-05,2]
[356141767,1741954042328,-1322.43,8.712e-05,2]
[356141768,1741954042348,-500.0,8.712e-05,2]
[356141769,1741954042370,-500.0,8.712e-05,2]
[356141770,1741954042394,-500.0,8.712e-05,2]
[356141771,1741954042414,-500.0,8.713e-05,2]
[356141772,1741954042437,-500.0,8.713e-05,2]
[356141773,1741954042458,-500.0,8.713e-05,2]
[356141774,1741954042478,-514.34058072,8.713e-05,2]
[356141775,1741954042498,-500.98359949,8.713e-05,2]
[356141776,1741954042518,-474.95519472,8.713e-05,2]
[356141777,1741954042538,-508.20000281,8.713e-05,2]
[356141778,1741954042560,-507.78723942,8.732e-05,2]
[356141779,1741954042581,-459.25362908,8.732e-05,2]
[356141780,1741954042601,-500.0,8.732e-05,2]
[356141781,1741954042624,-500.0,8.732e-05,2]
[356141782,1741954042644,-500.0,8.732e-05,2]
[356141783,1741954042664,-500.0,8.732e-05,2]
[356141784,1741954042684,-500.0,8.732e-05,2]
[356141785,1741954042705,-500.0,8.732e-05,2]
[356141786,1741954042725,-500.0,8.732e-05,2]
[356141787,1741954042746,-500.0,8.732e-05,2]
[356141788,1741954042766,-500.0,8.732e-05,2]
[356141789,1741954042787,-500.0,8.732e-05,2]
[356141790,1741954042808,-500.0,8.732e-05,2]
[356141791,1741954042829,-579.40343344,8.732e-05,2]
[356141792,1741954042849,-500.0,8.732e-05,2]
[356141793,1741954042870,-500.0,8.732e-05,2]
[356141794,1741954042893,-500.0,8.732e-05,2]
[356141795,1741954042917,-530.15,8.732e-05,2]
[356141796,1741954042937,-500.0,8.732e-05,2]
[356141797,1741954042961,-500.0,8.732e-05,2]
[356141798,1741954042982,-691.01,8.732e-05,2]
[356141799,1741954043003,-500.0,8.732e-05,2]
[356141800,1741954043022,-500.0,8.732e-05,2]
[356141801,1741954043042,-615.90290892,8.732e-05,2]
[356141802,1741954043062,-5331.12,8.732e-05,2]
[356141803,1741954043082,-500.0,8.732e-05,2]
[356141804,1741954043102,-500.0,8.732e-05,2]
[356141805,1741954043123,-500.0,8.732e-05,2]
[356141806,1741954043144,-500.0,8.732e-05,2]
[356141807,1741954043164,-500.0,8.732e-05,2]
[356141808,1741954043185,-500.0,8.732e-05,2]
[356141809,1741954043205,-500.0,8.732e-05,2]
[356141810,1741954043226,-1479.32,8.732e-05,2]
[356141811,1741954043246,-500.0,8.732e-05,2]
[356141812,1741954043266,-500.0,8.732e-05,2]
[356141813,1741954043286,-500.0,8.732e-05,2]
[356141814,1741954043306,-500.0,8.732e-05,2]
[356141815,1741954043327,-500.0,8.732e-05,2]
[356141816,1741954043349,-1274.15,8.732e-05,2]
[356141817,1741954043369,-500.0,8.732e-05,2]
[356141818,1741954043394,-500.0,8.732e-05,2]
[356141819,1741954043415,-500.0,8.732e-05,2]
[356141820,1741954043435,-500.0,8.732e-05,2]
[356141821,1741954043457,-1385.84,8.732e-05,2]
[356141822,1741954043478,-563.38602048,8.732e-05,2]
[356141823,1741954043499,-500.0,8.732e-05,2]
[356141824,1741954043520,-500.0,8.732e-05,2]
[356141825,1741954043540,-500.0,8.732e-05,2]
[356141826,1741954043560,-500.0,8.732e-05,2]
[356141827,1741954043582,-500.0,8.732e-05,2]
[356141828,1741954043603,-1016.62,8.732e-05,2]
[356141829,1741954043623,-500.0,8.732e-05,2]
[356141830,1741954043644,-530.02021636,8.732e-05,2]
[356141831,1741954043664,-500.0,8.732e-05,2]
[356141832,1741954043685,-600.78542894,8.732e-05,2]
[356141833,1741954043705,-500.0,8.732e-05,2]
[356141834,1741954043726,-3602.18,8.732e-05,2]
[356141835,1741954043746,-500.0,8.732e-05,2]
[356141836,1741954043766,-638.98,8.732e-05,2]
[356141837,1741954043787,-3112.71,8.732e-05,2]
[356141838,1741954043808,-2150.7,8.732e-05,2]
[356141839,1741954043828,-500.0,8.732e-05,2]
[356141840,1741954043848,-500.0,8.732e-05,2]
[356141841,1741954043868,-500.0,8.732e-05,2]
[356141842,1741954043889,-500.0,8.732e-05,2]
[356141843,1741954043909,-500.0,8.732e-05,2]
[356141844,1741954043929,-863.13,8.732e-05,2]
[356141845,1741954043949,-500.0,8.732e-05,2]
[356141846,1741954043970,-715.28,8.732e-05,2]
[356141847,1741954043990,-500.0,8.732e-05,2]
[356141848,1741954044011,-1056.18,8.732e-05,2]
[356141849,1741954044032,-500.0,8.732e-05,2]
[356141850,1741954044053,-500.0,8.732e-05,2]
[356141851,1741954044073,-500.0,8.732e-05,2]
[356141852,1741954044094,-500.0,8.732e-05,2]
[356141853,1741954044114,-500.0,8.732e-05,2]
[356141854,1741954044136,-500.0,8.732e-05,2]
[356141855,1741954044158,-500.0,8.732e-05,2]
[356141856,1741954044179,-4026.32,8.732e-05,2]
[356141857,1741954044200,-607.94,8.732e-05,2]
[356141858,1741954044221,-266.77297762,8.734e-05,2]
[356141866,1741954152079,-435.33396675,8.218e-05,2]
[356141867,1741954152101,-300.0,8.218e-05,2]
[356141868,1741954152123,-4097.79237517,8.219e-05,2]
[356141869,1741954152152,-1011.19762483,8.219e-05,2]
[356141870,1741954152173,-500.0,8.219e-05,2]
[356141871,1741954152195,-902.52,8.219e-05,2]
[356141872,1741954152218,-500.0,8.219e-05,2]
[356141873,1741954152241,-5108.99,8.493e-05,2]
[356141874,1741954152262,-500.0,8.493e-05,2]
[356141875,1741954152283,-902.52,8.493e-05,2]
[356141876,1741954152304,-500.0,8.493e-05,2]
[356141877,1741954152325,-500.0,8.712e-05,2]
[356141878,1741954152346,-1328.1,8.712e-05,2]
[356141879,1741954152367,-974.26,8.712e-05,2]
[356141880,1741954152387,-505.12496916,8.732e-05,2]
[356141881,1741954152407,-736.56,8.732e-05,2]
[356141882,1741954152432,-500.0,8.732e-05,2]
[356141883,1741954152452,-500.0,8.732e-05,2]
[356141884,1741954152472,-510.48464107,8.732e-05,2]
[356141885,1741954152494,-500.0,8.732e-05,2]
[356141886,1741954152514,-500.0,8.732e-05,2]
[356141887,1741954152534,-500.0,8.732e-05,2]
[356141888,1741954152555,-2328.94,8.732e-05,2]
[356141889,1741954152575,-500.0,8.732e-05,2]
[356141890,1741954152596,-1793.78,8.732e-05,2]
[356141891,1741954152616,-500.0,8.732e-05,2]
[356141892,1741954152636,-500.0,8.732e-05,2]
[356141893,1741954152656,-500.0,8.732e-05,2]
[356141894,1741954152676,-896.73,8.732e-05,2]
[356141895,1741954152696,-511.1,8.732e-05,2]
[356141896,1741954152716,-1027.04,8.732e-05,2]
[356141897,1741954152736,-500.0,8.732e-05,2]
[356141898,1741954152757,-1351.71,8.732e-05,2]
[356141899,1741954152776,-500.0,8.732e-05,2]
[356141900,1741954152797,-834.43,8.732e-05,2]
[356141901,1741954152817,-500.0,8.732e-05,2]
[356141902,1741954152836,-500.0,8.732e-05,2]
[356141903,1741954152856,-500.0,8.732e-05,2]
[356141904,1741954152875,-699.68,8.732e-05,2]
[356141905,1741954152896,-500.0,8.732e-05,2]
[356141906,1741954152917,-500.0,8.732e-05,2]
[356141907,1741954152938,-500.0,8.732e-05,2]
[356141908,1741954152957,-766.31,8.732e-05,2]
[356141909,1741954152978,-665.96,8.732e-05,2]
[356141910,1741954152998,-611.57,8.732e-05,2]
[356141911,1741954153019,-477.8273667,8.733e-05,2]
[356141912,1741954153039,-6255.88,8.733e-05,2]
[356141913,1741954153059,-233.22702238,8.734e-05,2]
[356141914,1741954153080,-500.0,8.734e-05,2]
[356141915,1741954153100,-500.0,8.734e-05,2]
[356141916,1741954153120,-500.68320999,8.734e-05,2]
[356141917,1741954153140,-500.0,8.734e-05,2]
[356141918,1741954153160,-500.0,8.734e-05,2]
[356141919,1741954153180,-510.31169934,8.734e-05,2]
[356141920,1741954153200,-500.0,8.734e-05,2]
[356141921,1741954153221,-500.0,8.734e-05,2]
[356141922,1741954153241,-265.66990129,8.734e-05,2]
[356141923,1741954153261,-500.0,8.734e-05,2]
[356141924,1741954153282,-500.0,8.734e-05,2]
[356141925,1741954153303,-500.0,8.734e-05,2]
[356141926,1741954153323,-500.0,8.734e-05,2]
[356141927,1741954153344,-500.0,8.734e-05,2]
[356141928,1741954153364,-500.0,8.734e-05,2]
[356141929,1741954153385,-500.0,8.734e-05,2]
[356141930,1741954153405,-500.0,8.734e-05,2]
[356141931,1741954153429,-500.0,8.734e-05,2]
[356141932,1741954153450,-500.0,8.734e-05,2]
[356141933,1741954153472,-500.0,8.734e-05,2]
[356141934,1741954153494,-143.02330524,8.734e-05,2]
[356141935,1741954211533,600.0,0.0001,3]
[356141947,1741954232284,-505.81553757,8.219e-05,2]
[356141948,1741954232293,-2907.59205476,8.219e-05,2]
[356141949,1741954232390,-75.41794524,8.219e-05,2]
[356141950,1741954232400,-2983.01,8.493e-05,2]
[356141951,1741954232409,-300.0,8.711e-05,2]
[356141952,1741954232419,-500.0,8.712e-05,2]
[356141953,1741954232429,-3452.09,8.712e-05,2]
[356141954,1741954232438,-2061.08,8.712e-05,2]
[356141955,1741954232450,-827.17,8.712e-05,2]
[356141956,1741954232460,-500.0,8.712e-05,2]
[356141957,1741954232469,-500.0,8.712e-05,2]
[356141959,1741954232478,-500.0,8.712e-05,2]
[356141961,1741954232489,-3858.56,8.712e-05,2]
[356141962,1741954232498,-500.0,8.732e-05,2]
[356141963,1741954232507,-664.3,8.732e-05,2]
[356141964,1741954232516,-519.63,8.732e-05,2]
[356141965,1741954232525,-956.33,8.732e-05,2]
[356141966,1741954232536,-500.0,8.732e-05,2]
[356141967,1741954232546,-500.0,8.732e-05,2]
[356141968,1741954232556,-500.0,8.732e-05,2]
[356141969,1741954232566,-500.0,8.732e-05,2]
[356141970,1741954232575,-500.0,8.732e-05,2]
[356141971,1741954232585,-500.0,8.732e-05,2]
[356141972,1741954232595,-500.0,8.732e-05,2]
[356141973,1741954232604,-500.0,8.732e-05,2]
[356141974,1741954232613,-500.0,8.732e-05,2]
[356141975,1741954232623,-500.0,8.732e-05,2]
[356141976,1741954232632,-500.0,8.732e-05,2]
[356141977,1741954232642,-500.0,8.732e-05,2]
[356141978,1741954232651,-500.0,8.732e-05,2]
[356141979,1741954232660,-534.52,8.732e-05,2]
[356141980,1741954232669,-855.09,8.732e-05,2]
[356141981,1741954232678,-500.0,8.732e-05,2]
[356141982,1741954232687,-716.03,8.732e-05,2]
[356141983,1741954232697,-500.0,8.732e-05,2]
[356141984,1741954232706,-500.0,8.732e-05,2]
[356141985,1741954232715,-500.0,8.732e-05,2]
[356141986,1741954232724,-500.0,8.732e-05,2]
[356141987,1741954232734,-500.0,8.732e-05,2]
[356141988,1741954232743,-500.0,8.732e-05,2]
[356141989,1741954232752,-958.5,8.732e-05,2]
[356141990,1741954232761,-505.83303495,8.732e-05,2]
[356141991,1741954232770,-1267.33,8.733e-05,2]
[356141992,1741954232780,-500.0,8.733e-05,2]
[356141993,1741954232789,-500.0,8.733e-05,2]
[356141994,1741954232799,-500.0,8.733e-05,2]
[356141995,1741954232809,-356.97669476,8.734e-05,2]
[356141996,1741954232818,-500.0,8.734e-05,2]
[356141997,1741954232827,-500.0,8.734e-05,2]
[356141998,1741954232836,-500.0,8.734e-05,2]
[356141999,1741954232846,-500.0,8.734e-05,2]
[356142000,1741954232855,-528.64489928,8.734e-05,2]
[356142001,1741954232864,-500.0,8.734e-05,2]
[356142002,1741954232874,-500.0,8.734e-05,2]
[356142003,1741954232883,-500.0,8.734e-05,2]
[356142004,1741954232893,-501.9212106,8.734e-05,2]
[356142005,1741954232902,-500.0,8.734e-05,2]
[356142006,1741954232911,-500.0,8.734e-05,2]
[356142007,1741954232920,-500.0,8.734e-05,2]
[356142008,1741954232930,-500.0,8.734e-05,2]
[356142009,1741954232940,-500.0,8.734e-05,2]
[356142010,1741954232949,-500.0,8.734e-05,2]
[356142011,1741954232959,-500.0,8.734e-05,2]
[356142012,1741954232969,-1793.78,8.734e-05,2]
[356142013,1741954232978,-500.0,8.734e-05,2]
[356142014,1741954232987,-500.0,8.734e-05,2]
[356142015,1741954232997,-400.0,8.734e-05,2]
[356142016,1741954233006,-500.0,8.734e-05,2]
[356142017,1741954233016,-500.0,8.734e-05,2]
[356142018,1741954233025,-500.0,8.734e-05,2]
[356142019,1741954233036,-376.52677057,8.734e-05,2]
[356142020,1741954233046,-500.0,8.734e-05,2]
[356142021,1741954233056,-500.0,8.734e-05,2]
[356142022,1741954233066,-500.0,8.734e-05,2]
[356142023,1741954233077,-500.0,8.734e-05,2]
[356142024,1741954233087,-500.0,8.734e-05,2]
[356142025,1741954233097,-500.0,8.734e-05,2]